bitfinex/quotes_SOLUSD_20250528
["timestamp","ask_amount","ask_price","bid_price","bid_amount"]
[1748461294291,14.74356708,169.57,169.54,53.60225146]
[1748461294460,14.74356708,169.57,169.56,53.60225146]
[1748461294885,14.74356708,169.57,169.56,18.79181043]
[1748461295062,14.74356708,169.57,169.56,18.64964886]
[1748461297774,55.45127767,169.57,169.51,1.5752]
[1748461297978,20.85621987,169.56,169.52,18.79181043]
[1748461298586,20.85621987,169.56,169.52,39.6480303]
[1748461299087,20.64083664,169.57,169.53,20.85621987]
[1748461299297,20.64083664,169.57,169.55,18.64964886]
[1748461299498,5.89726956,169.57,169.56,39.6480303]
[1748461299991,14.74115076,169.6,169.56,39.6480303]
[1748461299992,20.63737717,169.6,169.56,39.6480303]
[1748461300180,41.49359704,169.6,169.56,39.6480303]
[1748461301975,20.63737717,169.6,169.58,18.64964886]
[1748461302388,130.99359704,169.6,169.56,18.79181043]
[1748461302611,130.99359704,169.6,169.56,39.6480303]
[1748461303803,110.13737717,169.6,169.58,39.50586873]
[1748461304010,110.13737717,169.6,169.59,20.85621987]
[1748461304179,20.63737717,169.6,169.59,20.85621987]
[1748461304805,5.89622641,169.6,169.59,39.79019187]
[1748461305006,5.89622641,169.6,169.59,41.40619187]
[1748461306093,20.63435914,169.62,169.6,18.79181043]
[1748461306507,20.63435914,169.62,169.59,1.616]
[1748461306697,20.85621987,169.6,169.56,18.64964886]
[1748461306900,20.85621987,169.59,169.56,18.64964886]
[1748461307098,20.85621987,169.6,169.56,18.64964886]
[1748461307612,20.85621987,169.59,169.56,18.64964886]
[1748461307986,5.8969218,169.58,169.56,18.64964886]
[1748461310311,34.74585087,169.57,169.52,18.64964886]
[1748461310493,34.74585087,169.56,169.53,0.14216157]
[1748461310705,34.74585087,169.56,169.53,18.64964886]
[1748461311396,34.74585087,169.56,169.51,18.933972]
[1748461311593,34.74585087,169.55,169.51,18.933972]
[1748461312194,89.5,169.58,169.51,18.933972]
[1748461312195,55.38994665,169.54,169.51,18.933972]
[1748461312399,34.74585087,169.52,169.5,18.64964886]
[1748461312594,34.74585087,169.51,169.47,18.64964886]
[1748461313618,34.74585087,169.51,169.48,18.64964886]
[1748461313927,55.38994665,169.54,169.51,18.79181043]
[1748461314090,20.64409578,169.54,169.51,53.5376613]
[1748461314416,20.64409578,169.54,169.51,18.79181043]
[1748461317419,34.74585087,169.53,169.5,0.28432314]
[1748461317722,55.38994665,169.54,169.5,0.28432314]
[1748461318913,34.74585087,169.52,169.44,26.0]
[1748461319218,34.74585087,169.52,169.48,18.933972]
[1748461319522,34.74585087,169.52,169.49,18.64964886]
[1748461319923,89.5,169.53,169.51,0.14216157]
[1748461321026,5.89900896,169.52,169.51,0.14216157]
[1748461322891,5.89900896,169.52,169.46,18.64964886]
[1748461322892,40.64485983,169.52,169.5,0.14216157]
[1748461323103,34.74585087,169.51,169.5,0.14216157]
[1748461323942,40.64485983,169.52,169.5,0.14216157]
[1748461324607,5.89900896,169.52,169.5,53.67982287]
[1748461324810,5.89900896,169.52,169.51,53.67982287]
[1748461325325,5.89831308,169.54,169.52,18.79181043]
[1748461325498,5.89831308,169.54,169.53,18.933972]
[1748461325812,5.89831308,169.54,169.53,18.64964886]
[1748461326013,40.64416395,169.54,169.53,18.64964886]
[1748461326609,5.89831308,169.54,169.53,18.64964886]
[1748461326806,40.64416395,169.54,169.53,18.64964886]
[1748461328120,55.38994665,169.54,169.49,0.28432314]
[1748461328296,34.74585087,169.5,169.47,18.79181043]
[1748461328493,34.74585087,169.49,169.47,18.64964886]
[1748461329013,34.74585087,169.49,169.48,0.14216157]
[1748461329216,5.9000531,169.49,169.48,0.14216157]
[1748461331004,5.89970501,169.5,169.49,18.79181043]
[1748461331419,5.89970501,169.5,169.49,53.5376613]
[1748461332323,5.89970501,169.5,169.49,53.67982287]
[1748461332527,5.89900896,169.52,169.5,18.79181043]
[1748461332723,5.89900896,169.52,169.51,53.5376613]
[1748461333229,20.6447142,169.54,169.51,53.5376613]
[1748461334635,5.89831308,169.54,169.52,53.5376613]
[1748461334852,5.89831308,169.54,169.53,0.14216157]
[1748461335002,5.89831308,169.54,169.53,53.67982287]
[1748461335604,5.89761736,169.56,169.54,18.79181043]
[1748461335824,5.89761736,169.56,169.54,53.5376613]
[1748461336011,5.89761736,169.56,169.54,39.6409367]
[1748461336720,5.89761736,169.56,169.54,18.79181043]
[1748461336958,20.64103475,169.57,169.55,39.49877513]
[1748461337172,20.64103475,169.57,169.56,39.6409367]
[1748461337367,5.89726956,169.57,169.56,39.6409367]
[1748461338466,5.89726956,169.57,169.56,18.79181043]
[1748461339497,95.39703588,169.58,169.57,18.79181043]
[1748461339784,95.39703588,169.58,169.57,39.6409367]
[1748461339957,5.89622641,169.6,169.58,0.28432314]
[1748461340154,5.89622641,169.6,169.59,39.6409367]
[1748461341168,5.89587878,169.61,169.59,39.6409367]
[1748461341976,5.39587878,169.61,169.59,39.6409367]
[1748461342168,5.39587878,169.61,169.6,20.84912627]
[1748461342367,5.39587878,169.61,169.6,39.6409367]
[1748461343080,4.89587878,169.61,169.6,39.78309827]
[1748461343386,14.73863236,169.63,169.61,18.79181043]
[1748461343550,14.73863236,169.63,169.61,39.6409367]
[1748461343961,5.89483612,169.64,169.62,39.49877513]
[1748461344957,5.39483612,169.64,169.62,39.49877513]
[1748461345174,5.39483612,169.64,169.62,18.64964886]
[1748461345384,5.89448865,169.65,169.62,18.64964886]
[1748461345761,20.63071028,169.65,169.62,18.64964886]
[1748461346077,40.97983655,169.65,169.62,18.64964886]
[1748461347666,20.13071028,169.65,169.63,18.79181043]
[1748461347869,20.13071028,169.65,169.63,39.6409367]
[1748461348377,5.39448865,169.65,169.64,39.6409367]
[1748461348770,5.39448865,169.65,169.64,39.78309827]
[1748461349986,14.73424536,169.68,169.65,18.933972]
[1748461350283,5.89309918,169.69,169.67,39.6409367]
[1748461350683,5.89309918,169.69,169.68,39.6409367]
[1748461351076,5.89240469,169.71,169.69,0.14216157]
[1748461351259,5.89240469,169.71,169.7,18.79181043]
[1748461351465,5.89240469,169.71,169.7,0.14216157]
[1748461352075,5.8920575,169.72,169.7,0.14216157]
[1748461352883,5.8920575,169.72,169.7,18.79181043]
[1748461354295,20.62041444,169.74,169.71,18.64964886]
[1748461354678,41.46954071,169.74,169.71,18.64964886]
[1748461355270,20.84912627,169.73,169.7,0.14216157]
[1748461355701,110.12041444,169.74,169.7,18.79181043]
[1748461356004,110.12041444,169.74,169.71,0.28432314]
[1748461356005,5.89136326,169.74,169.71,0.28432314]
[1748461356202,20.61681587,169.77,169.74,18.64964886]
[1748461356500,41.46594214,169.77,169.74,18.64964886]
[1748461357298,20.61681587,169.77,169.75,18.64964886]
[1748461357494,20.61681587,169.77,169.75,39.49877513]
[1748461358011,5.8903222,169.77,169.75,39.49877513]
[1748461358164,5.8903222,169.77,169.76,39.6409367]
[1748461358888,5.8903222,169.77,169.76,18.79181043]
[1748461359063,5.8903222,169.77,169.76,39.78309827]
[1748461359373,5.88962836,169.79,169.77,18.79181043]
[1748461359895,5.88962836,169.79,169.77,0.14216157]
[1748461360604,41.46282554,169.79,169.74,18.64964886]
[1748461360810,41.46282554,169.79,169.76,18.64964886]
[1748461361903,41.46282554,169.79,169.75,0.28432314]
[1748461362086,41.46282554,169.79,169.74,18.64964886]
[1748461362087,20.84912627,169.77,169.74,18.64964886]
[1748461362605,5.89066918,169.76,169.74,18.64964886]
[1748461362779,20.84912627,169.75,169.71,18.79181043]
[1748461362981,41.4664684,169.76,169.72,0.14216157]
[1748461363498,20.61734213,169.76,169.72,0.28432314]
[1748461363797,41.4664684,169.76,169.72,0.28432314]
[1748461364268,41.4664684,169.76,169.72,21.13344941]
[1748461364469,41.4664684,169.76,169.73,18.64964886]
[1748461367899,20.84912627,169.75,169.7,18.933972]
[1748461368089,20.84912627,169.75,169.7,39.78309827]
[1748461368904,41.4664684,169.76,169.72,18.933972]
[1748461369579,41.4664684,169.76,169.72,0.28432314]
[1748461369785,41.4664684,169.76,169.72,18.933972]
[1748461370394,20.61734213,169.76,169.74,0.14216157]
[1748461372381,41.4664684,169.76,169.74,0.14216157]
[1748461372797,41.4664684,169.76,169.73,18.933972]
[1748461373191,20.61734213,169.76,169.73,18.933972]
[1748461373392,41.4664684,169.76,169.73,18.933972]
[1748461376202,20.84912627,169.76,169.73,18.933972]
[1748461377005,50.06184109,169.79,169.73,18.933972]
[1748461377188,20.84912627,169.76,169.73,18.933972]
[1748461378483,5.8910162,169.75,169.73,18.933972]
[1748461379795,5.8910162,169.75,169.73,0.28432314]
[1748461381402,5.8910162,169.75,169.72,18.64964886]
[1748461381403,20.84912627,169.74,169.7,18.79181043]
[1748461381604,20.84912627,169.73,169.71,0.14216157]
[1748461381793,20.84912627,169.73,169.7,18.64964886]
[1748461381993,20.84912627,169.74,169.71,0.14216157]
[1748461382195,20.84912627,169.74,169.71,0.28432314]
[1748461382710,14.7275405,169.75,169.73,18.79181043]
[1748461383807,14.7275405,169.75,169.73,0.14216157]
[1748461384013,14.7275405,169.75,169.73,18.933972]
[1748461384788,20.6185567,169.75,169.73,18.933972]
[1748461384988,20.6185567,169.75,169.73,0.28432314]
[1748461385212,41.46768297,169.75,169.73,0.28432314]
[1748461385407,20.84912627,169.74,169.72,0.14216157]
[1748461385657,20.84912627,169.73,169.71,18.64964886]
[1748461385821,20.84912627,169.72,169.65,8.9087532]
[1748461386109,20.84912627,169.68,169.66,18.933972]
[1748461386314,20.84912627,169.68,169.66,18.64964886]
[1748461386689,20.84912627,169.68,169.67,0.14216157]
[1748461386884,26.74257275,169.68,169.67,0.14216157]
[1748461387114,5.89344648,169.68,169.67,0.14216157]
[1748461387512,26.74257275,169.68,169.67,0.14216157]
[1748461387812,26.74257275,169.68,169.63,18.64964886]
[1748461387813,41.47618896,169.68,169.63,18.64964886]
[1748461388014,20.84912627,169.67,169.64,0.28432314]
[1748461388218,20.84912627,169.67,169.64,0.14216157]
[1748461388594,20.84912627,169.67,169.64,0.28432314]
[1748461388817,5.89414122,169.66,169.64,0.28432314]
[1748461389897,5.89414122,169.66,169.65,18.933972]
[1748461390506,5.89414122,169.66,169.65,0.14216157]
[1748461391292,5.89414122,169.66,169.65,18.79181043]
[1748461391532,5.89344648,169.68,169.66,0.28432314]
[1748461391814,5.89344648,169.68,169.67,18.933972]
[1748461394527,5.89317935,169.69,169.68,18.933972]
[1748461394697,5.89317935,169.69,169.68,39.78309827]
[1748461395641,5.89317935,169.69,169.68,18.64964886]
[1748461395827,26.74230562,169.69,169.68,18.64964886]
[1748461396321,5.89317935,169.69,169.68,18.64964886]
[1748461397437,5.89317935,169.69,169.68,39.78309827]
[1748461398108,20.62406728,169.71,169.69,18.64964886]
[1748461400932,41.47319355,169.71,169.68,18.933972]
[1748461403132,20.62406728,169.71,169.69,18.64964886]
[1748461404737,20.62406728,169.71,169.68,18.64964886]
[1748461404738,41.47319355,169.71,169.68,18.64964886]
[1748461405449,20.62406728,169.71,169.67,18.933972]
[1748461405618,41.47319355,169.71,169.67,18.933972]
[1748461406450,20.84912627,169.7,169.67,18.933972]
[1748461406657,5.89309918,169.69,169.67,18.933972]
[1748461407330,20.84912627,169.68,169.66,18.64964886]
[1748461407635,20.84912627,169.68,169.65,0.14216157]
[1748461408017,20.84912627,169.68,169.65,0.28432314]
[1748461408507,41.4749734,169.69,169.66,18.64964886]
[1748461412351,41.4749734,169.69,169.64,18.64964886]
[1748461412531,20.84912627,169.68,169.64,18.64964886]
[1748461412921,5.89379383,169.67,169.64,18.64964886]
[1748461413838,5.89379383,169.67,169.66,18.64964886]
[1748461414252,5.89379383,169.67,169.65,18.64964886]
[1748461414459,26.7429201,169.67,169.65,18.64964886]
[1748461414621,26.7429201,169.67,169.64,18.933972]
[1748461414822,5.89379383,169.67,169.64,18.933972]
[1748461416931,41.47740468,169.67,169.62,70.46332627]
[1748461417131,20.84912627,169.65,169.63,18.64964886]
[1748461417840,20.62827841,169.67,169.63,18.64964886]
[1748461417841,20.84912627,169.64,169.63,18.64964886]
[1748461418025,20.84912627,169.64,169.6,56.14964886]
[1748461418224,20.84912627,169.63,169.6,56.14964886]
[1748461418424,20.84912627,169.63,169.59,18.933972]
[1748461418625,5.89553118,169.62,169.59,18.79181043]
[1748461418853,20.63435914,169.62,169.59,18.64964886]
[1748461419165,41.48348541,169.62,169.59,18.64964886]
[1748461421139,20.84912627,169.61,169.52,1.5553]
[1748461421450,20.84912627,169.58,169.54,0.28432314]
[1748461421966,20.84912627,169.6,169.56,18.64964886]
[1748461422654,5.89657409,169.59,169.56,39.49877513]
[1748461423834,5.89622641,169.6,169.56,39.49877513]
[1748461424530,5.89596309,169.61,169.58,18.64964886]
[1748461424734,95.39563533,169.62,169.59,39.49877513]
[1748461425432,95.39563533,169.62,169.59,18.64964886]
[1748461425860,95.39563533,169.62,169.59,39.49877513]
[1748461427158,6.24993533,169.62,169.6,0.28432314]
[1748461427555,6.24993533,169.62,169.61,18.64964886]
[1748461428454,6.24993533,169.62,169.6,18.933972]
[1748461428638,6.24993533,169.62,169.6,18.64964886]
[1748461428833,27.0990616,169.62,169.59,18.64964886]
[1748461430459,6.24993533,169.62,169.59,39.49877513]
[1748461430704,0.3543,169.62,169.6,0.28432314]
[1748461430838,0.3543,169.62,169.61,18.933972]
[1748461431034,6.24983118,169.62,169.61,18.933972]
[1748461433246,6.24983118,169.62,169.61,0.28432314]
[1748461434050,6.24983118,169.62,169.59,18.64964886]
[1748461434257,20.84912627,169.61,169.59,18.64964886]
[1748461434677,41.83778541,169.62,169.59,18.64964886]
[1748461436150,20.98865914,169.62,169.59,18.64964886]
[1748461436361,20.98865914,169.62,169.59,39.49877513]
[1748461436949,20.98865914,169.62,169.59,18.64964886]
[1748461437151,41.83778541,169.62,169.59,18.64964886]
[1748461438068,20.84912627,169.61,169.58,18.64964886]
[1748461438279,20.98865914,169.62,169.58,18.64964886]
[1748461438280,26.74535268,169.6,169.58,18.64964886]
[1748461438576,26.74535268,169.6,169.56,18.933972]
[1748461439357,41.48591871,169.6,169.56,18.933972]
[1748461439563,20.84912627,169.59,169.56,18.933972]
[1748461439760,20.84912627,169.59,169.56,0.28432314]
[1748461440165,41.48591871,169.6,169.56,0.28432314]
[1748461440371,20.63679244,169.6,169.56,0.28432314]
[1748461440576,41.48591871,169.6,169.56,0.28432314]
[1748461441068,41.48591871,169.6,169.57,18.64964886]
[1748461441687,41.48591871,169.6,169.56,0.28432314]
[1748461442060,20.84912627,169.57,169.55,18.64964886]
[1748461442476,20.84912627,169.56,169.52,0.64472291]
[1748461442659,20.84912627,169.54,169.53,18.64964886]
[1748461443072,20.84912627,169.54,169.52,0.64472291]
[1748461443285,20.84912627,169.53,169.52,19.29437177]
[1748461443665,26.74778727,169.53,169.52,19.29437177]
[1748461444276,26.74778727,169.53,169.52,0.64472291]
[1748461447073,47.59691354,169.53,169.52,0.64472291]
[1748461447375,84.89691354,169.53,169.52,0.64472291]
[1748461447696,26.0,169.5,169.42,18.64964886]
[1748461447994,26.75057212,169.45,169.42,18.64964886]
[1748461448578,20.84912627,169.44,169.42,18.64964886]
[1748461448776,20.84912627,169.44,169.4,18.64964886]
[1748461448981,20.84912627,169.43,169.39,18.64964886]
[1748461449174,20.84912627,169.43,169.39,39.49877513]
[1748461449369,21.00936048,169.45,169.37,64.9824]
[1748461449370,20.84912627,169.42,169.38,18.64964886]
[1748461449568,20.84912627,169.42,169.38,39.49877513]
[1748461449992,5.90283926,169.41,169.38,39.49877513]
[1748461451269,5.90283926,169.41,169.38,18.64964886]
[1748461451497,5.90283926,169.41,169.38,39.49877513]
[1748461452209,5.90249085,169.42,169.38,39.49877513]
[1748461452773,5.90249085,169.42,169.4,18.64964886]
[1748461453079,21.20342627,169.45,169.42,18.64964886]
[1748461453378,6.25583966,169.45,169.42,18.64964886]
[1748461453764,27.10496593,169.45,169.42,18.64964886]
[1748461454597,27.10496593,169.45,169.41,18.933972]
[1748461454792,27.10496593,169.45,169.41,39.78309827]
[1748461455000,27.10496593,169.45,169.41,0.28432314]
[1748461455208,20.84912627,169.44,169.41,18.933972]
[1748461456472,5.90214247,169.43,169.41,18.933972]
[1748461456882,5.90214247,169.43,169.42,18.64964886]
[1748461458102,26.75092041,169.44,169.41,0.28432314]
[1748461458310,26.75092041,169.44,169.41,18.933972]
[1748461458490,20.84912627,169.42,169.37,1.5224]
[1748461458691,131.00540577,169.44,169.38,18.64964886]
[1748461458911,20.84912627,169.39,169.35,18.64964886]
[1748461459117,20.84912627,169.38,169.35,18.64964886]
[1748461459301,20.84912627,169.37,169.34,18.64964886]
[1748461459805,20.84912627,169.36,169.34,18.64964886]
[1748461460007,5.90493061,169.35,169.34,18.64964886]
[1748461461905,5.90458195,169.36,169.34,18.64964886]
[1748461462228,20.84912627,169.35,169.29,86.4196]
[1748461462387,20.84912627,169.33,169.3,18.64964886]
[1748461462896,20.84912627,169.34,169.3,18.64964886]
[1748461463234,20.84912627,169.35,169.3,39.49877513]
[1748461463391,20.84912627,169.34,169.3,18.64964886]
[1748461463591,20.84912627,169.33,169.3,18.64964886]
[1748461463827,20.66603683,169.36,169.3,18.64964886]
[1748461463828,20.84912627,169.32,169.3,18.64964886]
[1748461464033,5.90632567,169.31,169.3,18.64964886]
[1748461465593,26.75545194,169.31,169.26,10.14]
[1748461465817,20.84912627,169.28,169.27,18.64964886]
[1748461466014,26.75649867,169.28,169.25,18.64964886]
[1748461466327,20.84912627,169.26,169.25,18.64964886]
[1748461466521,20.84912627,169.27,169.22,20.84912627]
[1748461466700,20.84912627,169.27,169.21,10.14]
[1748461466701,5.9073724,169.28,169.24,18.64964886]
[1748461466902,5.9073724,169.28,169.26,18.64964886]
[1748461467100,26.75649867,169.28,169.21,47.52]
[1748461467301,5.9073724,169.28,169.21,47.52]
[1748461467528,26.75649867,169.28,169.23,0.14216157]
[1748461467728,26.75649867,169.28,169.24,20.84912627]
[1748461467902,26.75649867,169.28,169.23,18.79181043]
[1748461468357,26.75649867,169.28,169.23,39.49877513]
[1748461468756,26.75649867,169.28,169.24,20.84912627]
[1748461469180,5.90667454,169.3,169.26,39.49877513]
[1748461469454,5.90667454,169.3,169.28,18.64964886]
[1748461469656,26.75580081,169.3,169.26,18.64964886]
[1748461470035,20.84912627,169.29,169.26,18.64964886]
[1748461470242,20.84912627,169.29,169.25,18.64964886]
[1748461470450,20.84912627,169.29,169.23,18.933972]
[1748461470649,20.67336089,169.3,169.26,20.84912627]
[1748461470848,21.02766089,169.3,169.27,18.64964886]
[1748461471279,41.87678716,169.3,169.27,18.64964886]
[1748461471580,41.87678716,169.3,169.23,18.933972]
[1748461471781,20.84912627,169.29,169.23,0.28432314]
[1748461471957,20.84912627,169.29,169.26,18.64964886]
[1748461472141,5.9073724,169.28,169.26,18.64964886]
[1748461472862,5.9073724,169.28,169.26,39.49877513]
[1748461473953,5.9073724,169.28,169.23,18.933972]
[1748461474158,5.90702345,169.29,169.23,18.933972]
[1748461474463,26.75614972,169.29,169.26,18.64964886]
[1748461474839,5.90702345,169.29,169.27,18.64964886]
[1748461475038,26.75614972,169.29,169.27,18.64964886]
[1748461475452,5.90702345,169.29,169.26,39.49877513]
[1748461476464,5.90702345,169.29,169.27,20.84912627]
[1748461476659,5.90702345,169.29,169.28,18.64964886]
[1748461477170,5.90632567,169.31,169.29,18.64964886]
[1748461477480,5.90632567,169.31,169.29,39.49877513]
[1748461478146,20.84912627,169.32,169.27,1.6467]
[1748461478346,20.84912627,169.32,169.28,39.49877513]
[1748461478552,20.84912627,169.32,169.28,18.64964886]
[1748461478753,20.84912627,169.31,169.28,18.64964886]
[1748461479354,14.76451027,169.33,169.27,20.84912627]
[1748461479576,20.84912627,169.32,169.27,20.84912627]
[1748461479773,35.61363654,169.33,169.29,18.64964886]
[1748461480155,41.5192646,169.33,169.29,18.64964886]
[1748461480355,20.84912627,169.32,169.29,18.64964886]
[1748461480947,20.84912627,169.32,169.28,18.64964886]
[1748461481964,20.84912627,169.31,169.28,18.64964886]
[1748461482365,5.90667454,169.3,169.28,18.64964886]
[1748461483190,20.67336089,169.3,169.26,39.49877513]
[1748461484190,20.67336089,169.3,169.28,18.64964886]
[1748461485479,41.52248716,169.3,169.28,18.64964886]
[1748461486079,20.67336089,169.3,169.27,20.84912627]
[1748461486274,20.67336089,169.3,169.28,18.64964886]
[1748461486471,14.76668635,169.3,169.28,18.64964886]
[1748461487153,14.76668635,169.3,169.26,18.64964886]
[1748461487358,20.84912627,169.29,169.26,18.64964886]
[1748461489363,5.9073724,169.28,169.26,18.64964886]
[1748461489979,5.9073724,169.28,169.26,20.84912627]
[1748461490174,41.52492967,169.28,169.21,10.14]
[1748461490372,41.52492967,169.28,169.24,18.64964886]
[1748461490689,41.52492967,169.28,169.21,47.8]
[1748461490690,20.84912627,169.27,169.22,18.64964886]
[1748461490889,20.84912627,169.27,169.24,18.64964886]
[1748461491482,5.90807042,169.26,169.24,18.64964886]
[1748461491671,20.84912627,169.25,169.21,39.49877513]
[1748461491873,41.52737275,169.26,169.21,39.49877513]
[1748461492475,41.52737275,169.26,169.22,20.84912627]
[1748461493186,41.52737275,169.26,169.22,18.64964886]
[1748461495811,41.52737275,169.26,169.2,18.64964886]
[1748461496005,41.52737275,169.26,169.22,18.64964886]
[1748461497891,20.84912627,169.25,169.22,18.64964886]
[1748461498089,20.84912627,169.25,169.21,18.64964886]
[1748461498303,20.84912627,169.24,169.21,18.64964886]
[1748461498995,5.90911776,169.23,169.21,18.64964886]
[1748461499807,5.90911776,169.23,169.19,18.64964886]
[1748461500036,5.90911776,169.23,169.21,18.64964886]
[1748461500396,5.90911776,169.23,169.21,39.49877513]
[1748461500599,5.90911776,169.23,169.21,20.84912627]
[1748461500817,41.53045461,169.24,169.2,18.64964886]
[1748461501125,20.68132834,169.24,169.2,18.64964886]
[1748461501302,20.68132834,169.24,169.2,39.49877513]
[1748461501705,20.84912627,169.23,169.19,39.49877513]
[1748461501913,20.68132834,169.24,169.2,20.84912627]
[1748461502131,20.68132834,169.24,169.21,18.64964886]
[1748461503130,20.68132834,169.24,169.22,18.64964886]
[1748461503430,20.68132834,169.24,169.21,18.64964886]
[1748461503634,41.53045461,169.24,169.21,18.64964886]
[1748461504012,41.53045461,169.24,169.2,20.84912627]
[1748461504339,41.53045461,169.24,169.19,18.64964886]
[1748461504340,20.84912627,169.23,169.19,39.49877513]
[1748461504848,20.68313437,169.22,169.19,39.49877513]
[1748461505012,20.84912627,169.2,169.16,18.64964886]
[1748461505211,20.84912627,169.21,169.16,39.49877513]
[1748461505518,20.68313437,169.22,169.14,5.64414526]
[1748461505519,20.68313437,169.22,169.19,18.64964886]
[1748461505829,5.90876861,169.24,169.22,18.64964886]
[1748461506056,5.90876861,169.24,169.23,39.49877513]
[1748461506666,5.90772139,169.27,169.24,18.64964886]
[1748461506955,89.5,169.29,169.2,48.47782627]
[1748461506956,20.672852,169.31,169.27,18.64964886]
[1748461507168,20.672852,169.31,169.29,18.64964886]
[1748461507335,5.90632567,169.31,169.28,39.49877513]
[1748461507861,5.90601246,169.32,169.3,39.49877513]
[1748461508038,6.2727,169.39,169.31,20.84912627]
[1748461508039,14.76283537,169.35,169.31,20.84912627]
[1748461508241,5.90527931,169.34,169.33,39.49877513]
[1748461508544,5.90527931,169.34,169.32,18.64964886]
[1748461508729,20.84912627,169.33,169.27,1.6287]
[1748461508925,20.6684776,169.34,169.3,39.49877513]
[1748461509140,20.6684776,169.34,169.3,18.64964886]
[1748461509345,41.51760387,169.34,169.28,18.64964886]
[1748461509544,20.84912627,169.33,169.29,20.84912627]
[1748461509956,41.51760387,169.34,169.29,20.84912627]
[1748461510142,20.84912627,169.33,169.29,20.84912627]
[1748461510863,5.90597684,169.32,169.29,20.84912627]
[1748461511055,20.67091896,169.32,169.28,39.49877513]
[1748461511433,20.67091896,169.32,169.29,20.84912627]
[1748461512251,20.67091896,169.32,169.3,18.64964886]
[1748461512252,5.90597684,169.32,169.3,18.64964886]
[1748461512466,5.90527931,169.34,169.32,18.64964886]
[1748461512636,5.90527931,169.34,169.32,39.49877513]
[1748461512964,10.26,169.38,169.32,39.49877513]
[1748461512965,5.90458195,169.36,169.32,39.49877513]
[1748461513281,5.90458195,169.36,169.29,18.64964886]
[1748461513282,41.5151631,169.36,169.29,18.64964886]
[1748461513498,41.5151631,169.36,169.32,18.64964886]
[1748461513891,20.66603683,169.36,169.32,20.84912627]
[1748461514059,41.5151631,169.36,169.32,20.84912627]
[1748461514464,41.5151631,169.36,169.32,18.64964886]
[1748461514767,41.5151631,169.36,169.28,37.6]
[1748461514768,41.5151631,169.36,169.29,18.64964886]
[1748461514970,41.8694631,169.36,169.32,18.64964886]
[1748461515162,20.84912627,169.35,169.32,18.64964886]
[1748461515485,21.02033683,169.36,169.27,1.6287]
[1748461515486,20.84912627,169.33,169.27,1.6287]
[1748461515682,20.84912627,169.33,169.29,18.64964886]
[1748461515984,37.6,169.35,169.29,20.84912627]
[1748461516169,20.84912627,169.34,169.3,18.64964886]
[1748461516365,21.02033683,169.36,169.32,20.84912627]
[1748461516570,20.84912627,169.35,169.31,39.49877513]
[1748461517067,5.90493061,169.35,169.33,39.49877513]
[1748461517987,5.90493061,169.35,169.33,18.64964886]
[1748461518371,5.90493061,169.35,169.33,39.49877513]
[1748461518772,5.90493061,169.35,169.34,39.49877513]
[1748461519316,6.25896681,169.36,169.34,39.49877513]
[1748461519481,6.25896681,169.36,169.34,18.64964886]
[1748461519782,6.25896681,169.36,169.34,39.49877513]
[1748461519987,5.90466681,169.36,169.34,39.49877513]
[1748461520287,20.66612169,169.36,169.33,18.64964886]
[1748461520669,20.66612169,169.36,169.31,18.64964886]
[1748461520670,41.51524796,169.36,169.31,18.64964886]
[1748461521025,41.51524796,169.36,169.31,39.49877513]
[1748461521696,41.51524796,169.36,169.3,26.0]
[1748461521697,20.66612169,169.36,169.33,18.64964886]
[1748461522104,20.66612169,169.36,169.3,26.0]
[1748461522105,41.51524796,169.36,169.31,39.49877513]
[1748461522819,20.84912627,169.34,169.24,16.4334]
[1748461522991,50.18903146,169.36,169.28,18.64964886]
[1748461522992,20.84912627,169.31,169.28,18.64964886]
[1748461523192,20.84912627,169.29,169.28,18.64964886]
[1748461523529,20.6758034,169.28,169.24,46.84912627]
[1748461523693,20.6758034,169.28,169.22,1.5708]
[1748461523898,41.52492967,169.28,169.23,20.84912627]
[1748461524117,41.52492967,169.28,169.24,18.64964886]
[1748461524293,20.6758034,169.28,169.23,18.64964886]
[1748461524615,41.52492967,169.28,169.24,20.84912627]
[1748461525149,20.6758034,169.28,169.24,20.84912627]
[1748461525444,20.6758034,169.28,169.23,18.64964886]
[1748461525737,41.52492967,169.28,169.23,39.49877513]
[1748461527142,20.6758034,169.28,169.24,20.84912627]
[1748461527946,20.6758034,169.28,169.26,18.64964886]
[1748461528160,5.9073724,169.28,169.27,20.84912627]
[1748461528350,5.9073724,169.28,169.27,39.49877513]
[1748461529337,20.672611,169.31,169.28,18.64964886]
[1748461529629,20.672611,169.31,169.28,39.49877513]
[1748461530031,5.90632567,169.31,169.3,18.64964886]
[1748461530243,5.90632567,169.31,169.3,39.49877513]
[1748461530565,5.90632567,169.31,169.3,18.64964886]
[1748461531150,5.90632567,169.31,169.3,39.49877513]
[1748461531327,5.90562806,169.33,169.3,41.15903263]
[1748461532734,5.90562806,169.33,169.3,20.30990636]
[1748461532946,5.90562806,169.33,169.3,41.15903263]
[1748461533328,20.66969821,169.33,169.3,41.15903263]
[1748461534049,41.51882448,169.33,169.3,20.30990636]
[1748461534753,20.66969821,169.33,169.3,41.15903263]